[Event "Early-Titled-Tuesday-Blitz-October-03-2023"]
[Site "Chess.com"]
[Date "2023.10.03"]
[Round "5"]
[White "bylavochka"]
[Black "JosefineHeinemann"]
[Result "0-1"]
[WhiteElo "2312"]
[BlackElo "2517"]
[TimeControl "180+1"]
[EndTime "8:57:08 PDT"]
[Termination "JosefineHeinemann won by resignation"]

1. e4 {[%clk 0:03:00.9]} 1... c5 {[%clk 0:02:56.4]} 2. Nf3 {[%clk 0:03:00.2]}
2... d6 {[%clk 0:02:53.8]} 3. d4 {[%clk 0:03:00.2]} 3... cxd4 {[%clk 0:02:54.7]}
4. Nxd4 {[%clk 0:03:01.1]} 4... Nf6 {[%clk 0:02:53.6]} 5. Nc3 {[%clk 0:03:01.3]}
5... a6 {[%clk 0:02:53.7]} 6. f3 {[%clk 0:02:57.3]} 6... e5 {[%clk 0:02:53]} 7.
Nb3 {[%clk 0:02:56.3]} 7... Be6 {[%clk 0:02:51.6]} 8. Be3 {[%clk 0:02:55.1]}
8... h5 {[%clk 0:02:50.6]} 9. Qd2 {[%clk 0:02:50.4]} 9... Nbd7 {[%clk
0:02:48.6]} 10. O-O-O {[%clk 0:02:48.5]} 10... Rc8 {[%clk 0:02:48.7]} 11. Kb1
{[%clk 0:02:33.9]} 11... Qc7 {[%clk 0:02:42.4]} 12. Nd5 {[%clk 0:02:15.5]} 12...
Bxd5 {[%clk 0:02:31.8]} 13. exd5 {[%clk 0:02:16.4]} 13... g6 {[%clk 0:02:31.8]}
14. c4 {[%clk 0:02:05.5]} 14... Bg7 {[%clk 0:02:20.6]} 15. Bd3 {[%clk
0:02:05.4]} 15... O-O {[%clk 0:02:16.8]} 16. Bh6 {[%clk 0:01:52]} 16... b6
{[%clk 0:02:07.8]} 17. Bxg7 {[%clk 0:01:25.2]} 17... Kxg7 {[%clk 0:02:08.7]} 18.
Rc1 {[%clk 0:01:18.8]} 18... a5 {[%clk 0:02:07.3]} 19. Qe2 {[%clk 0:01:14.4]}
19... a4 {[%clk 0:01:58.1]} 20. Nd2 {[%clk 0:01:14.5]} 20... Nc5 {[%clk
0:01:58.3]} 21. Ne4 {[%clk 0:00:56.8]} 21... Nfxe4 {[%clk 0:01:44.7]} 22. Bxe4
{[%clk 0:00:56.7]} 22... Nxe4 {[%clk 0:01:44.3]} 23. fxe4 {[%clk 0:00:54]} 23...
f5 {[%clk 0:01:44.1]} 24. exf5 {[%clk 0:00:51.2]} 24... Rxf5 {[%clk 0:01:45]}
25. g4 {[%clk 0:00:41.6]} 25... hxg4 {[%clk 0:01:30.2]} 26. Rhg1 {[%clk
0:00:40.7]} 26... Qf7 {[%clk 0:01:25.8]} 27. Qxg4 {[%clk 0:00:35.7]} 27... Rf8
{[%clk 0:01:20.3]} 28. h4 {[%clk 0:00:27.8]} 28... Rf4 {[%clk 0:01:13.6]} 29.
Qg3 {[%clk 0:00:24]} 29... Qf5+ {[%clk 0:01:11.2]} 30. Ka1 {[%clk 0:00:22.6]}
30... Rf3 {[%clk 0:01:05.7]} 31. Qg2 {[%clk 0:00:19.6]} 31... Rf2 {[%clk
0:01:05.1]} 32. Qg3 {[%clk 0:00:18.2]} 32... Rf3 {[%clk 0:00:51.9]} 33. Qg2
{[%clk 0:00:17.5]} 33... a3 {[%clk 0:00:52.4]} 34. bxa3 {[%clk 0:00:10.9]} 34...
Ra8 {[%clk 0:00:36]} 35. h5 {[%clk 0:00:06.6]} 35... Qxh5 {[%clk 0:00:34.5]} 36.
Qb2 {[%clk 0:00:06.8]} 36... Rfxa3 {[%clk 0:00:29.5]} 37. Rg2 {[%clk 0:00:06.6]}
37... Rxa2+ {[%clk 0:00:15.6]} 38. Qxa2 {[%clk 0:00:07.5]} 38... Rxa2+ {[%clk
0:00:15.9]} 39. Rxa2 {[%clk 0:00:08.4]} 39... Qg4 {[%clk 0:00:15.6]} 40. Ra7+
{[%clk 0:00:07.3]} 40... Kh6 {[%clk 0:00:15.3]} 41. Rb7 {[%clk 0:00:06.7]} 41...
Qd4+ {[%clk 0:00:14.6]} 42. Kb1 {[%clk 0:00:06.3]} 42... g5 {[%clk 0:00:15.2]}
43. Rh1+ {[%clk 0:00:05.8]} 43... Kg6 {[%clk 0:00:15.5]} 44. Rhh7 {[%clk
0:00:02.9]} 44... Kf5 {[%clk 0:00:15.6]} 45. Rbf7+ {[%clk 0:00:02.9]} 45... Ke4
{[%clk 0:00:15.9]} 46. Rhg7 {[%clk 0:00:02.8]} 46... Qxc4 {[%clk 0:00:15.6]} 47.
Rxg5 {[%clk 0:00:03.3]} 47... Qxd5 {[%clk 0:00:15.4]} 48. Rg4+ {[%clk
0:00:03.5]} 48... Ke3 {[%clk 0:00:15.9]} 49. Rg3+ {[%clk 0:00:04.2]} 49... Ke2
{[%clk 0:00:16.5]} 50. Rfg7 {[%clk 0:00:04.2]} 50... b5 {[%clk 0:00:14.5]} 51.
Rg2+ {[%clk 0:00:04.5]} 51... Kf1 {[%clk 0:00:13.3]} 52. Rg1+ {[%clk 0:00:04.3]}
52... Kf2 {[%clk 0:00:13.9]} 53. Rc1 {[%clk 0:00:03.9]} 53... Qd3+ {[%clk
0:00:13.1]} 54. Rc2+ {[%clk 0:00:03.4]} 54... Kf3 {[%clk 0:00:13.7]} 55. Rg8
{[%clk 0:00:03.2]} 55... b4 {[%clk 0:00:13.6]} 56. Rf8+ {[%clk 0:00:03.8]} 56...
Ke4 {[%clk 0:00:13.7]} 57. Kc1 {[%clk 0:00:03.3]} 57... b3 {[%clk 0:00:13.2]}
58. Rd2 {[%clk 0:00:03.8]} 58... Qc3+ {[%clk 0:00:13.3]} 59. Kd1 {[%clk
0:00:04.4]} 59... b2 {[%clk 0:00:12.3]} 60. Rff2 {[%clk 0:00:02.9]} 60... b1=Q+
{[%clk 0:00:11.7]} 61. Ke2 {[%clk 0:00:03.8]} 61... Qbd3+ {[%clk 0:00:11.6]} 62.
Rxd3 {[%clk 0:00:04]} 62... Qxd3+ {[%clk 0:00:12.5]} 63. Ke1 {[%clk 0:00:04.8]}
63... Qe3+ {[%clk 0:00:12.2]} 64. Re2 {[%clk 0:00:03.1]} 64... d5 {[%clk
0:00:12.1]} 65. Kf1 {[%clk 0:00:02.3]} 65... Qxe2+ {[%clk 0:00:11.4]} 66. Kxe2
{[%clk 0:00:02.7]} 66... d4 {[%clk 0:00:12.3]} 67. Kf2 {[%clk 0:00:02.7]} 67...
Kd3 {[%clk 0:00:12.5]} 68. Kf3 {[%clk 0:00:03.2]} 68... Kc2 {[%clk 0:00:13.4]}
0-1

[Event "Early-Titled-Tuesday-Blitz-October-03-2023"]
[Site "Chess.com"]
[Date "2023.10.03"]
[Round "5"]
[White "Rozhkov_V"]
[Black "LoaySameer"]
[Result "1-0"]
[WhiteElo "2443"]
[BlackElo "2592"]
[TimeControl "180+1"]
[EndTime "8:57:10 PDT"]
[Termination "Rozhkov_V won by resignation"]

1. e4 {[%clk 0:03:00.9]} 1... g6 {[%clk 0:02:57.6]} 2. d4 {[%clk 0:03:00.4]}
2... Bg7 {[%clk 0:02:57.1]} 3. Nf3 {[%clk 0:03:01]} 3... d6 {[%clk 0:02:57.5]}
4. Nc3 {[%clk 0:03:01]} 4... Nf6 {[%clk 0:02:57.8]} 5. Be3 {[%clk 0:03:01]} 5...
d5 {[%clk 0:02:56.8]} 6. e5 {[%clk 0:02:57.9]} 6... Ne4 {[%clk 0:02:57.2]} 7.
Nxe4 {[%clk 0:02:51]} 7... dxe4 {[%clk 0:02:58.1]} 8. Nd2 {[%clk 0:02:51.6]}
8... c5 {[%clk 0:02:57.1]} 9. Nxe4 {[%clk 0:02:43.4]} 9... cxd4 {[%clk
0:02:56.8]} 10. Qxd4 {[%clk 0:02:31.7]} 10... O-O {[%clk 0:02:55.3]} 11. Qxd8
{[%clk 0:02:25.7]} 11... Rxd8 {[%clk 0:02:55.3]} 12. f4 {[%clk 0:02:25.5]} 12...
Bf5 {[%clk 0:02:54.8]} 13. Bd3 {[%clk 0:02:24.9]} 13... Nc6 {[%clk 0:02:55.5]}
14. a3 {[%clk 0:02:21.4]} 14... f6 {[%clk 0:02:52.3]} 15. exf6 {[%clk
0:02:19.2]} 15... exf6 {[%clk 0:02:53.2]} 16. Nc5 {[%clk 0:01:59.9]} 16... Bc8
{[%clk 0:02:10.3]} 17. O-O-O {[%clk 0:01:53.7]} 17... b6 {[%clk 0:01:46.2]} 18.
Bc4+ {[%clk 0:01:42.8]} 18... Kf8 {[%clk 0:01:44.2]} 19. Rxd8+ {[%clk
0:01:25.5]} 19... Nxd8 {[%clk 0:01:44.4]} 20. Ne4 {[%clk 0:01:26.1]} 20... Bb7
{[%clk 0:01:40.6]} 21. Nc3 {[%clk 0:01:19.5]} 21... Bxg2 {[%clk 0:01:38.1]} 22.
Rd1 {[%clk 0:01:19.4]} 22... Bc6 {[%clk 0:01:28.2]} 23. a4 {[%clk 0:01:03.4]}
23... Rc8 {[%clk 0:01:27.2]} 24. Bb3 {[%clk 0:01:02]} 24... Nb7 {[%clk
0:01:24.2]} 25. Nb5 {[%clk 0:00:58.9]} 25... Bxb5 {[%clk 0:01:13.1]} 26. axb5
{[%clk 0:00:59.8]} 26... Na5 {[%clk 0:01:13]} 27. Ba2 {[%clk 0:00:53.3]} 27...
Ke7 {[%clk 0:01:08.2]} 28. c3 {[%clk 0:00:40.3]} 28... Nc4 {[%clk 0:01:00.8]}
29. Bd4 {[%clk 0:00:39.5]} 29... Bh6 {[%clk 0:00:58.4]} 30. Rf1 {[%clk
0:00:28.8]} 30... f5 {[%clk 0:00:54.1]} 31. Kc2 {[%clk 0:00:26.2]} 31... Nd6
{[%clk 0:00:46]} 32. Re1+ {[%clk 0:00:23.1]} 32... Kf8 {[%clk 0:00:39.5]} 33.
Be5 {[%clk 0:00:16.3]} 33... Ne4 {[%clk 0:00:35.8]} 34. Bd5 {[%clk 0:00:12.9]}
34... Rd8 {[%clk 0:00:09.1]} 35. Bxe4 {[%clk 0:00:12.8]} 35... fxe4 {[%clk
0:00:10]} 36. Rxe4 {[%clk 0:00:13.3]} 36... Kf7 {[%clk 0:00:10.7]} 37. Ra4
{[%clk 0:00:12.3]} 37... Rd7 {[%clk 0:00:11.2]} 38. Rc4 {[%clk 0:00:07]} 38...
Ke6 {[%clk 0:00:10.7]} 39. Rc6+ {[%clk 0:00:06.8]} 39... Kf5 {[%clk 0:00:10.7]}
40. Rf6+ {[%clk 0:00:07.4]} 40... Ke4 {[%clk 0:00:10.5]} 41. c4 {[%clk
0:00:04.9]} 41... Bg7 {[%clk 0:00:07]} 42. Re6 {[%clk 0:00:04.4]} 42... Kf5
{[%clk 0:00:07.7]} 43. Re8 {[%clk 0:00:03.5]} 43... Bh6 {[%clk 0:00:06.7]} 44.
Rf8+ {[%clk 0:00:02.7]} 44... Kg4 {[%clk 0:00:07.1]} 45. Re8 {[%clk 0:00:02.3]}
45... Kh3 {[%clk 0:00:07.1]} 46. b4 {[%clk 0:00:01.8]} 46... Bg7 {[%clk
0:00:04.1]} 47. Bxg7 {[%clk 0:00:01.7]} 47... Rxg7 {[%clk 0:00:04.4]} 48. c5
{[%clk 0:00:02.6]} 48... Rc7 {[%clk 0:00:05]} 49. c6 {[%clk 0:00:03]} 49... Kxh2
{[%clk 0:00:05.6]} 50. Rd8 {[%clk 0:00:03.4]} 50... h5 {[%clk 0:00:04.2]} 51.
Rd7 {[%clk 0:00:03.8]} 51... Rc8 {[%clk 0:00:04.8]} 52. Kd3 {[%clk 0:00:03.4]}
52... Kg3 {[%clk 0:00:05.4]} 53. Ke4 {[%clk 0:00:03.7]} 53... h4 {[%clk
0:00:05.9]} 54. Rg7 {[%clk 0:00:03.8]} 54... Re8+ {[%clk 0:00:06.2]} 55. Kd5
{[%clk 0:00:03.1]} 55... h3 {[%clk 0:00:06.5]} 56. Rxg6+ {[%clk 0:00:03.6]}
56... Kxf4 {[%clk 0:00:07.2]} 57. Rh6 {[%clk 0:00:04.2]} 57... Kg3 {[%clk
0:00:07.6]} 58. Kd6 {[%clk 0:00:04.8]} 58... Re1 {[%clk 0:00:07.8]} 59. c7
{[%clk 0:00:04.4]} 59... Rc1 {[%clk 0:00:08]} 60. Kd7 {[%clk 0:00:04.3]} 60...
Rd1+ {[%clk 0:00:08.6]} 61. Kc8 {[%clk 0:00:04.6]} 61... Rc1 {[%clk 0:00:09.1]}
62. Kb7 {[%clk 0:00:05]} 62... h2 {[%clk 0:00:08.9]} 63. c8=Q {[%clk 0:00:03.1]}
63... Rxc8 {[%clk 0:00:09.6]} 64. Kxc8 {[%clk 0:00:03.7]} 64... Kg2 {[%clk
0:00:10.5]} 65. Kb7 {[%clk 0:00:03.5]} 65... h1=Q {[%clk 0:00:11.4]} 66. Rxh1
{[%clk 0:00:03.3]} 66... Kxh1 {[%clk 0:00:12.3]} 67. Kxa7 {[%clk 0:00:03.8]}
67... Kg2 {[%clk 0:00:13.2]} 68. Kxb6 {[%clk 0:00:04.7]} 68... Kf3 {[%clk
0:00:14.1]} 69. Kc7 {[%clk 0:00:05.5]} 69... Kf4 {[%clk 0:00:15]} 70. b6 {[%clk
0:00:06.4]} 1-0

[Event "Early-Titled-Tuesday-Blitz-October-03-2023"]
[Site "Chess.com"]
[Date "2023.10.03"]
[Round "5"]
[White "IwkooO"]
[Black "Duhless"]
[Result "0-1"]
[WhiteElo "2655"]
[BlackElo "2969"]
[TimeControl "180+1"]
[EndTime "8:57:16 PDT"]
[Termination "Duhless won by resignation"]

1. e4 {[%clk 0:02:55.9]} 1... c5 {[%clk 0:02:58.5]} 2. Nf3 {[%clk 0:02:55.1]}
2... Nc6 {[%clk 0:02:54.9]} 3. Bb5 {[%clk 0:02:54.5]} 3... e5 {[%clk 0:02:54.2]}
4. Nc3 {[%clk 0:02:52.6]} 4... d6 {[%clk 0:02:43.9]} 5. d3 {[%clk 0:02:44.5]}
5... Be7 {[%clk 0:02:43.4]} 6. Nd2 {[%clk 0:02:42.8]} 6... Nf6 {[%clk
0:02:35.3]} 7. Nf1 {[%clk 0:02:42.4]} 7... O-O {[%clk 0:02:33.5]} 8. Ne3 {[%clk
0:02:15]} 8... Nd4 {[%clk 0:02:25.4]} 9. Bc4 {[%clk 0:02:14.3]} 9... Be6 {[%clk
0:02:07.1]} 10. O-O {[%clk 0:02:13.6]} 10... Nd7 {[%clk 0:02:02.7]} 11. a4
{[%clk 0:02:11.9]} 11... Bg5 {[%clk 0:01:59.4]} 12. Ned5 {[%clk 0:02:08.2]}
12... Bxc1 {[%clk 0:01:55.2]} 13. Rxc1 {[%clk 0:02:09.1]} 13... Kh8 {[%clk
0:01:53]} 14. Ne3 {[%clk 0:02:05.4]} 14... Qg5 {[%clk 0:01:48]} 15. Ncd5 {[%clk
0:01:52.9]} 15... Rad8 {[%clk 0:01:43.1]} 16. c3 {[%clk 0:01:49.2]} 16... Nc6
{[%clk 0:01:43]} 17. Nc7 {[%clk 0:01:29.7]} 17... Qg6 {[%clk 0:01:29.8]} 18. Qe2
{[%clk 0:01:17.1]} 18... a6 {[%clk 0:01:22.1]} 19. Ncd5 {[%clk 0:01:07.1]} 19...
Qg5 {[%clk 0:01:14]} 20. Kh1 {[%clk 0:01:00.7]} 20... Rb8 {[%clk 0:01:06.8]} 21.
Nc7 {[%clk 0:00:56.1]} 21... Qe7 {[%clk 0:01:00.7]} 22. Ncd5 {[%clk 0:00:45.9]}
22... Qd8 {[%clk 0:00:54.4]} 23. f4 {[%clk 0:00:44.8]} 23... b5 {[%clk
0:00:53.9]} 24. axb5 {[%clk 0:00:44.7]} 24... axb5 {[%clk 0:00:54.8]} 25. Ba2
{[%clk 0:00:44.7]} 25... exf4 {[%clk 0:00:54.2]} 26. Rxf4 {[%clk 0:00:45.5]}
26... Ra8 {[%clk 0:00:53]} 27. Bb1 {[%clk 0:00:44.9]} 27... b4 {[%clk
0:00:50.9]} 28. Rcf1 {[%clk 0:00:43.7]} 28... bxc3 {[%clk 0:00:49.3]} 29. bxc3
{[%clk 0:00:44.6]} 29... Ra1 {[%clk 0:00:49.3]} 30. Ba2 {[%clk 0:00:39]} 30...
Rxf1+ {[%clk 0:00:47.9]} 31. Rxf1 {[%clk 0:00:39.9]} 31... Nde5 {[%clk
0:00:45.7]} 32. Nc4 {[%clk 0:00:18.8]} 32... Nxc4 {[%clk 0:00:39.3]} 33. Bxc4
{[%clk 0:00:18.5]} 33... Ne5 {[%clk 0:00:39.9]} 34. Ba2 {[%clk 0:00:18.4]} 34...
Qa5 {[%clk 0:00:39.4]} 35. d4 {[%clk 0:00:17.9]} 35... Nc6 {[%clk 0:00:34.9]}
36. dxc5 {[%clk 0:00:18]} 36... Qxc5 {[%clk 0:00:33.3]} 37. Qd2 {[%clk
0:00:18.3]} 37... Ra8 {[%clk 0:00:30.4]} 38. h3 {[%clk 0:00:16.4]} 38... h6
{[%clk 0:00:29.5]} 39. Rf2 {[%clk 0:00:16]} 39... Ne5 {[%clk 0:00:29.1]} 40. Kh2
{[%clk 0:00:15.9]} 40... Rc8 {[%clk 0:00:25.8]} 41. Rf4 {[%clk 0:00:07.2]} 41...
Rb8 {[%clk 0:00:20.5]} 42. Rh4 {[%clk 0:00:06.8]} 42... Kg8 {[%clk 0:00:14.7]}
43. Nf6+ {[%clk 0:00:04.3]} 43... Kf8 {[%clk 0:00:12.9]} 44. Bxe6 {[%clk
0:00:04.4]} 44... fxe6 {[%clk 0:00:12.7]} 45. Ng4 {[%clk 0:00:05.1]} 45... Nxg4+
{[%clk 0:00:12.6]} 46. Rxg4 {[%clk 0:00:06]} 46... Qe5+ {[%clk 0:00:13.4]} 47.
Qf4+ {[%clk 0:00:05.7]} 47... Qxf4+ {[%clk 0:00:13]} 48. Rxf4+ {[%clk
0:00:06.6]} 48... Ke7 {[%clk 0:00:13.7]} 49. Rg4 {[%clk 0:00:06.8]} 49... g5
{[%clk 0:00:14.1]} 50. h4 {[%clk 0:00:07.1]} 50... Kf6 {[%clk 0:00:14.4]} 51.
hxg5+ {[%clk 0:00:07.7]} 51... hxg5 {[%clk 0:00:15.3]} 52. e5+ {[%clk
0:00:07.4]} 52... Kf5 {[%clk 0:00:14.4]} 53. Kg3 {[%clk 0:00:04.8]} 53... Rc8
{[%clk 0:00:11.9]} 54. c4 {[%clk 0:00:03.6]} 54... Rb8 {[%clk 0:00:07.5]} 55.
Kh3 {[%clk 0:00:03.9]} 55... Rh8+ {[%clk 0:00:06.5]} 56. Kg3 {[%clk 0:00:04.2]}
56... Rb8 {[%clk 0:00:07.1]} 57. Kh3 {[%clk 0:00:04.5]} 57... Rb3+ {[%clk
0:00:07.3]} 58. g3 {[%clk 0:00:04.9]} 58... dxe5 {[%clk 0:00:06.9]} 59. c5
{[%clk 0:00:05]} 59... Rc3 {[%clk 0:00:07.4]} 60. Ra4 {[%clk 0:00:05.5]} 60...
e4 {[%clk 0:00:04.6]} 61. Ra5 {[%clk 0:00:05.4]} 61... e5 {[%clk 0:00:04.8]} 62.
Ra8 {[%clk 0:00:03.8]} 62... e3 {[%clk 0:00:03.5]} 63. Ra4 {[%clk 0:00:03.6]}
63... e2 {[%clk 0:00:02.9]} 64. Ra1 {[%clk 0:00:03.9]} 64... Ke4 {[%clk
0:00:02.9]} 65. Kg2 {[%clk 0:00:04.5]} 65... Ke3 {[%clk 0:00:03.6]} 66. c6
{[%clk 0:00:04.6]} 66... Rxc6 {[%clk 0:00:03.8]} 67. Ra3+ {[%clk 0:00:04.7]}
67... Kd2 {[%clk 0:00:04.3]} 68. Ra2+ {[%clk 0:00:05.3]} 68... Rc2 {[%clk
0:00:04.7]} 69. Rxc2+ {[%clk 0:00:05.4]} 69... Kxc2 {[%clk 0:00:05.4]} 0-1

[Event "Early-Titled-Tuesday-Blitz-October-03-2023"]
[Site "Chess.com"]
[Date "2023.10.03"]
[Round "5"]
[White "DoctorCheckyll"]
[Black "RETURNOFTHELAGGER"]
[Result "0-1"]
[WhiteElo "2321"]
[BlackElo "2655"]
[TimeControl "180+1"]
[EndTime "8:57:22 PDT"]
[Termination "RETURNOFTHELAGGER won by checkmate"]

1. e4 {[%clk 0:03:00.9]} 1... c5 {[%clk 0:02:49.9]} 2. Nf3 {[%clk 0:03:00.3]}
2... d6 {[%clk 0:02:50.5]} 3. Bb5+ {[%clk 0:03:00.3]} 3... Nc6 {[%clk
0:02:49.3]} 4. a4 {[%clk 0:03:00.5]} 4... Bd7 {[%clk 0:02:46.5]} 5. O-O {[%clk
0:02:59.8]} 5... Nf6 {[%clk 0:02:44.5]} 6. Re1 {[%clk 0:02:59.8]} 6... e5 {[%clk
0:02:27.8]} 7. d3 {[%clk 0:02:44.5]} 7... h6 {[%clk 0:02:24.8]} 8. h3 {[%clk
0:02:44.5]} 8... g5 {[%clk 0:02:20.6]} 9. Nh2 {[%clk 0:02:34.1]} 9... Rg8 {[%clk
0:02:18.2]} 10. c3 {[%clk 0:02:30]} 10... g4 {[%clk 0:02:15.5]} 11. hxg4 {[%clk
0:02:24.7]} 11... Nxg4 {[%clk 0:02:16.4]} 12. Nxg4 {[%clk 0:02:21.8]} 12... Bxg4
{[%clk 0:02:14.8]} 13. f3 {[%clk 0:02:03.9]} 13... Bd7 {[%clk 0:02:11.6]} 14.
Be3 {[%clk 0:01:55.4]} 14... Qh4 {[%clk 0:02:09.9]} 15. Bxc6 {[%clk 0:01:41]}
15... Bxc6 {[%clk 0:02:10.8]} 16. Qe2 {[%clk 0:01:40.6]} 16... O-O-O {[%clk
0:02:01.4]} 17. Nd2 {[%clk 0:01:40]} 17... Kb8 {[%clk 0:01:40.7]} 18. d4 {[%clk
0:01:27.6]} 18... Bd7 {[%clk 0:01:17.9]} 19. Qf2 {[%clk 0:01:25.6]} 19... Qh5
{[%clk 0:01:14.6]} 20. Kf1 {[%clk 0:01:07.9]} 20... Bh3 {[%clk 0:00:53.8]} 21.
gxh3 {[%clk 0:00:41.8]} 21... Qxh3+ {[%clk 0:00:54.7]} 22. Ke2 {[%clk 0:00:40]}
22... Rg2 {[%clk 0:00:53.7]} 23. d5 {[%clk 0:00:31.5]} 23... Rxf2+ {[%clk
0:00:50.8]} 24. Bxf2 {[%clk 0:00:31.9]} 24... Qd7 {[%clk 0:00:43.2]} 25. Nc4
{[%clk 0:00:30.2]} 25... f5 {[%clk 0:00:41.8]} 26. Ne3 {[%clk 0:00:25.6]} 26...
fxe4 {[%clk 0:00:40]} 27. fxe4 {[%clk 0:00:26]} 27... Be7 {[%clk 0:00:40.9]} 28.
Rh1 {[%clk 0:00:25.7]} 28... Bg5 {[%clk 0:00:40.5]} 29. Raf1 {[%clk 0:00:24.3]}
29... Qxa4 {[%clk 0:00:38.5]} 30. Nf5 {[%clk 0:00:19]} 30... Qxe4+ {[%clk
0:00:38]} 31. Be3 {[%clk 0:00:17.4]} 31... Qxd5 {[%clk 0:00:35.7]} 32. Bxg5
{[%clk 0:00:16.8]} 32... hxg5 {[%clk 0:00:34.7]} 33. Rh7 {[%clk 0:00:16.6]}
33... Qe4+ {[%clk 0:00:31.1]} 34. Ne3 {[%clk 0:00:15.9]} 34... Qxh7 {[%clk
0:00:32]} 35. Rf5 {[%clk 0:00:09]} 35... Qg7 {[%clk 0:00:28.1]} 36. Ng4 {[%clk
0:00:08]} 36... Rf8 {[%clk 0:00:28.3]} 37. Rf2 {[%clk 0:00:02.6]} 37... Rxf2+
{[%clk 0:00:27.8]} 38. Kxf2 {[%clk 0:00:03.5]} 38... Qd7 {[%clk 0:00:28.3]} 39.
Kg3 {[%clk 0:00:03.4]} 39... Qf5 {[%clk 0:00:28.4]} 40. Nh6 {[%clk 0:00:03.2]}
40... Qf4+ {[%clk 0:00:29.2]} 41. Kg2 {[%clk 0:00:03.4]} 41... g4 {[%clk
0:00:30.1]} 42. Nxg4 {[%clk 0:00:03.3]} 42... Qxg4+ {[%clk 0:00:31]} 43. Kf2
{[%clk 0:00:03.9]} 43... Qc4 {[%clk 0:00:31.5]} 44. Ke3 {[%clk 0:00:04.8]} 44...
Qa2 {[%clk 0:00:32.2]} 45. Kd2 {[%clk 0:00:05.7]} 45... Qxb2+ {[%clk 0:00:32.7]}
46. Kd3 {[%clk 0:00:06.6]} 46... e4+ {[%clk 0:00:31.5]} 47. Kc4 {[%clk
0:00:05.9]} 47... Qxc3+ {[%clk 0:00:32.4]} 48. Kxc3 {[%clk 0:00:06.2]} 48... d5
{[%clk 0:00:32.9]} 49. Kd2 {[%clk 0:00:06.5]} 49... Kc7 {[%clk 0:00:33.8]} 50.
Ke3 {[%clk 0:00:07.3]} 50... Kd6 {[%clk 0:00:34.7]} 51. Kf4 {[%clk 0:00:07.9]}
51... b5 {[%clk 0:00:35.6]} 52. Ke3 {[%clk 0:00:08.3]} 52... a5 {[%clk
0:00:36.5]} 53. Kd2 {[%clk 0:00:08.9]} 53... a4 {[%clk 0:00:37.4]} 54. Kc3
{[%clk 0:00:09.8]} 54... a3 {[%clk 0:00:38.2]} 55. Kb3 {[%clk 0:00:10.1]} 55...
b4 {[%clk 0:00:39.1]} 56. Ka2 {[%clk 0:00:10.6]} 56... Ke5 {[%clk 0:00:40]} 57.
Kb3 {[%clk 0:00:11.1]} 57... Kf4 {[%clk 0:00:40.9]} 58. Kc2 {[%clk 0:00:11.9]}
58... Kf3 {[%clk 0:00:41.8]} 59. Kc1 {[%clk 0:00:12.5]} 59... Kf2 {[%clk
0:00:42.7]} 60. Kb1 {[%clk 0:00:13.4]} 60... e3 {[%clk 0:00:43.6]} 61. Ka2
{[%clk 0:00:14.1]} 61... e2 {[%clk 0:00:44.5]} 62. Kb3 {[%clk 0:00:14.8]} 62...
e1=B {[%clk 0:00:43.2]} 63. Ka2 {[%clk 0:00:15.4]} 63... Bc3 {[%clk 0:00:43.1]}
64. Kb1 {[%clk 0:00:15.4]} 64... Ke2 {[%clk 0:00:43.9]} 65. Ka2 {[%clk
0:00:15.7]} 65... Kd1 {[%clk 0:00:43]} 66. Kb1 {[%clk 0:00:16.1]} 66... d4
{[%clk 0:00:43.9]} 67. Ka2 {[%clk 0:00:16.6]} 67... d3 {[%clk 0:00:44.8]} 68.
Kb1 {[%clk 0:00:16.8]} 68... d2 {[%clk 0:00:43.2]} 69. Ka2 {[%clk 0:00:17.2]}
69... Ke2 {[%clk 0:00:44.1]} 70. Kb1 {[%clk 0:00:16.5]} 70... d1=B {[%clk
0:00:43.7]} 71. Ka2 {[%clk 0:00:16.9]} 71... Kd3 {[%clk 0:00:40.7]} 72. Kb1
{[%clk 0:00:17.1]} 72... b3 {[%clk 0:00:38.9]} 73. Kc1 {[%clk 0:00:16.6]} 73...
b2+ {[%clk 0:00:22]} 74. Kb1 {[%clk 0:00:15.4]} 74... Bc2+ {[%clk 0:00:22.9]}
75. Ka2 {[%clk 0:00:15.1]} 75... b1=Q+ {[%clk 0:00:08.8]} 76. Kxa3 {[%clk
0:00:14.8]} 76... Qb4+ {[%clk 0:00:08.9]} 77. Ka2 {[%clk 0:00:14.9]} 77... Bb1#
{[%clk 0:00:09.8]} 0-1